fUSD/lending_fUSD_20241209
["ID","MTS","AMOUNT","RATE_DAILY","PERIOD"]
[344718463,1733736632863,-500.0,9.998e-05,2]
[344718464,1733736632872,-587.44150032,9.998e-05,2]
[344718465,1733736632881,-500.0,9.998e-05,2]
[344718466,1733736632891,-500.0,9.998e-05,2]
[344718467,1733736632900,-500.0,9.998e-05,2]
[344718468,1733736632909,-500.0,9.998e-05,2]
[344718469,1733736632919,-500.0,9.998e-05,2]
[344718470,1733736632928,-630.01453159,9.998e-05,2]
[344718471,1733736632937,-500.78494379,9.998e-05,2]
[344718472,1733736632946,-500.0,9.998e-05,2]
[344718473,1733736632955,-500.0,9.998e-05,2]
[344718474,1733736632964,-500.0,9.998e-05,2]
[344718475,1733736632973,-284.93,9.998e-05,2]
[344718476,1733736632983,-565.0,9.998e-05,2]
[344718477,1733736632992,-500.0,9.998e-05,2]
[344718478,1733736633004,-230.90038807,9.998e-05,2]
[344718479,1733736633013,-361.02814116,9.998e-05,2]
[344718480,1733736633023,-393.56626415,9.998e-05,2]
[344718481,1733736633033,-500.0,9.998e-05,2]
[344718482,1733736633044,-500.0,9.998e-05,2]
[344718483,1733736633054,-303.58910624,9.998e-05,2]
[344718484,1733736633063,-525.47,9.998e-05,2]
[344718485,1733736633073,-500.0,9.998e-05,2]
[344718486,1733736633083,-500.0,9.998e-05,2]
[344718487,1733736633093,-500.0,9.998e-05,2]
[344718488,1733736633102,-322.55,9.998e-05,2]
[344718489,1733736633112,-595.05,9.998e-05,2]
[344718490,1733736633122,-595.05,9.998e-05,2]
[344718491,1733736633132,-595.05,9.998e-05,2]
[344718492,1733736633141,-595.05,9.998e-05,2]
[344718493,1733736633152,-500.0,9.998e-05,2]
[344718494,1733736633166,-500.0,9.998e-05,2]
[344718495,1733736633176,-185.92341082,9.998e-05,2]
[344718496,1733736633186,-592.76,9.998e-05,2]
[344718497,1733736633196,-592.69,9.998e-05,2]
[344718498,1733736633207,-1837.47,9.998e-05,2]
[344718499,1733736633216,-592.69,9.998e-05,2]
[344718500,1733736633226,-1837.47,9.998e-05,2]
[344718501,1733736633236,-592.69,9.998e-05,2]
[344718502,1733736633247,-1837.47,9.998e-05,2]
[344718503,1733736633263,-592.69,9.998e-05,2]
[344718504,1733736633273,-1837.47,9.998e-05,2]
[344718505,1733736633283,-500.0,9.998e-05,2]
[344718506,1733736633293,-450.56390275,9.998e-05,2]
[344718507,1733736633302,-228.65,9.998e-05,2]
[344718508,1733736633312,-500.0,9.998e-05,2]
[344718509,1733736633322,-174.53843621,9.998e-05,2]
[344718510,1733736633333,-668.0,9.999e-05,2]
[344718511,1733736633343,-3143.20465565,9.999e-05,2]
[344718512,1733736633364,-1240.0000009,9.999e-05,2]
[344718513,1733736633376,-66033.77639844,9.999e-05,2]
[344718521,1733736637915,-500.0,9.998e-05,2]
[344718522,1733736637925,-10528.88642837,9.999e-05,2]
[344718523,1733736637937,-886.26192872,9.999e-05,2]
[344718524,1733736637978,-43088.3213167,9.999e-05,2]
[344718525,1733736637991,-10024.0,9.999e-05,2]
[344718526,1733736638333,-21.74235601,9.999e-05,2]
[344718527,1733736638344,-342.39,9.999e-05,2]
[344718528,1733736638355,-1944.57,9.999e-05,2]
[344718529,1733736638366,-588.93366714,9.999e-05,2]
[344718530,1733736638381,-1235.0000001,9.999e-05,2]
[344718541,1733736640012,-3129.69671045,9.999e-05,2]
[344718542,1733736640025,-107793.21653752,9.999e-05,2]
[344718543,1733736640034,-500.0,9.999e-05,2]
[344718544,1733736640043,-500.0,9.999e-05,2]
[344718545,1733736640053,-500.0,9.999e-05,2]
[344718546,1733736640062,-500.0,9.999e-05,2]
[344718547,1733736640071,-558.47290888,9.999e-05,2]
[344718548,1733736640080,-12808.5495536,9.999e-05,2]
[344718549,1733736641946,-500.0,9.998e-05,2]
[344718550,1733736641956,-3911.19795816,9.999e-05,2]
[344718551,1733736641968,-425.70856988,9.999e-05,2]
[344718552,1733736642008,-279406.61622296,9.999e-05,2]
[344718553,1733736642030,-83872.65502917,9.999e-05,2]
[344718554,1733736642066,-11941.6041,9.999e-05,2]
[344718555,1733736642238,-17518.05086261,9.999e-05,2]
[344718559,1733736643105,-2014.64420933,9.999e-05,2]
[344718560,1733736643166,-5978.45624486,9.999e-05,2]
[344718561,1733736643226,-1061.75248436,9.999e-05,2]
[344718562,1733736643238,-67000.43511561,9.999e-05,2]
[344718563,1733736643247,-167.71440477,9.999e-05,2]
[344718564,1733736643258,-320.77,9.999e-05,2]
[344718565,1733736643267,-789.00985155,9.999e-05,2]
[344718566,1733736643287,-166.29014845,9.999e-05,2]
[344718567,1733736643297,-500.0,9.999e-05,2]
[344718568,1733736643307,-500.0,9.999e-05,2]
[344718569,1733736643316,-500.0,9.999e-05,2]
[344718570,1733736643326,-360.71944448,9.999e-05,2]
[344718571,1733736643337,-595.05,9.999e-05,2]
[344718572,1733736643347,-595.05,9.999e-05,2]
[344718573,1733736643357,-595.05,9.999e-05,2]
[344718574,1733736643367,-595.05,9.999e-05,2]
[344718575,1733736643377,-595.05,9.999e-05,2]
[344718576,1733736643387,-595.05,9.999e-05,2]
[344718577,1733736643396,-595.05,9.999e-05,2]
[344718578,1733736643405,-595.05,9.999e-05,2]
[344718579,1733736643415,-595.05,9.999e-05,2]
[344718580,1733736643425,-595.05,9.999e-05,2]
[344718581,1733736643435,-595.05,9.999e-05,2]
[344718582,1733736643445,-595.05,9.999e-05,2]
[344718583,1733736643455,-580.14040708,9.999e-05,2]
[344718584,1733736643467,-14.90959292,9.999e-05,2]
[344718585,1733736643478,-595.05,9.999e-05,2]
[344718586,1733736643487,-595.05,9.999e-05,2]
[344718587,1733736643497,-595.05,9.999e-05,2]
[344718588,1733736643506,-595.05,9.999e-05,2]
[344718589,1733736643515,-595.05,9.999e-05,2]
[344718590,1733736643524,-573.84035508,9.999e-05,2]
[344718591,1733736643540,-21.20964492,9.999e-05,2]
[344718592,1733736643550,-595.21,9.999e-05,2]
[344718593,1733736643560,-592.69,9.999e-05,2]
[344718594,1733736643570,-1837.47,9.999e-05,2]
[344718595,1733736643578,-592.69,9.999e-05,2]
[344718596,1733736643589,-1837.47,9.999e-05,2]
[344718597,1733736643599,-592.69,9.999e-05,2]
[344718598,1733736643609,-1837.47,9.999e-05,2]
[344718599,1733736643619,-592.69,9.999e-05,2]
[344718600,1733736643629,-1837.47,9.999e-05,2]
[344718601,1733736643638,-592.69,9.999e-05,2]
[344718602,1733736643648,-1837.47,9.999e-05,2]
[344718603,1733736643658,-1837.47,9.999e-05,2]
[344718604,1733736643668,-592.69,9.999e-05,2]
[344718605,1733736643677,-1837.47,9.999e-05,2]
[344718606,1733736643687,-592.69,9.999e-05,2]
[344718607,1733736643697,-1837.47,9.999e-05,2]
[344718608,1733736643706,-592.69,9.999e-05,2]
[344718610,1733736643716,-1837.47,9.999e-05,2]
[344718612,1733736643725,-592.69,9.999e-05,2]
[344718614,1733736643734,-1837.47,9.999e-05,2]
[344718615,1733736643744,-592.69,9.999e-05,2]
[344718616,1733736643753,-1837.47,9.999e-05,2]
[344718617,1733736643763,-592.69,9.999e-05,2]
[344718618,1733736643772,-1837.47,9.999e-05,2]
[344718619,1733736643782,-592.69,9.999e-05,2]
[344718620,1733736643791,-1837.47,9.999e-05,2]
[344718621,1733736643800,-592.69,9.999e-05,2]
[344718622,1733736643810,-1837.47,9.999e-05,2]
[344718623,1733736643819,-592.69,9.999e-05,2]
[344718624,1733736643828,-592.69,9.999e-05,2]
[344718625,1733736643838,-1837.47,9.999e-05,2]
[344718627,1733736643847,-288.14041786,9.999e-05,2]
[344718629,1733736643883,-304.54958214,9.999e-05,2]
[344718630,1733736643893,-1837.47,9.999e-05,2]
[344718631,1733736643902,-25.01112276,9.999e-05,2]
[344718632,1733736643925,-567.67887724,9.999e-05,2]
[344718633,1733736643935,-1837.47,9.999e-05,2]
[344718635,1733736643944,-1837.47,9.999e-05,2]
[344718637,1733736643954,-592.69,9.999e-05,2]
[344718638,1733736643963,-1784.39824075,9.999e-05,2]
[344718639,1733736643999,-53.07175925,9.999e-05,2]
[344718640,1733736644010,-592.69,9.999e-05,2]
[344718641,1733736644019,-155.80471159,9.999e-05,2]
[344718642,1733736646107,-1681.74528841,9.999e-05,2]
[344718643,1733736646117,-592.71,9.999e-05,2]
[344718644,1733736646128,-500.0,9.999e-05,2]
[344718645,1733736646137,-500.0,9.999e-05,2]
[344718646,1733736646147,-500.0,9.999e-05,2]
[344718647,1733736646157,-500.0,9.999e-05,2]
[344718648,1733736646167,-624.53604911,9.999e-05,2]
[344718649,1733736646177,-43.00866248,9.999e-05,2]
[344718650,1733736646228,-119.63981798,9.999e-05,2]
[344718651,1733736646237,-500.0,9.999e-05,2]
[344718652,1733736646247,-500.0,9.999e-05,2]
[344718653,1733736646256,-500.0,9.999e-05,2]
[344718654,1733736646266,-500.0,9.999e-05,2]
[344718655,1733736646276,-195.10172072,9.999e-05,2]
[344718656,1733736646285,-475.6537116,9.999e-05,2]
[344718657,1733736646297,-24.3462884,9.999e-05,2]
[344718658,1733736646306,-500.0,9.999e-05,2]
[344718659,1733736646315,-500.0,9.999e-05,2]
[344718660,1733736646325,-300.0,9.999e-05,2]
[344718661,1733736646335,-199.42353764,9.999e-05,2]
[344718662,1733736646345,-500.0,9.999e-05,2]
[344718663,1733736646355,-194.20435917,9.999e-05,2]
[344718664,1733736646364,-500.0,9.999e-05,2]
[344718665,1733736646373,-181.97410039,9.999e-05,2]
[344718666,1733736646383,-146.29323868,0.0001,2]
[344718667,1733736646396,-552.70676132,0.0001,2]
[344718668,1733736646406,-685.59323868,0.0001,2]
[344718669,1733736646418,-24273.04492205,0.0001,2]
[344718670,1733736646430,-68249.99940424,0.0001,2]
[344718671,1733736646442,-44550.0,0.0001,2]
[344718672,1733736646453,-1931.07450671,0.0001,2]
[344718673,1733736646474,-2004.0,9.959e-05,2]
[344718674,1733736646484,-10548.426315,0.0001,2]
[344718675,1733736646500,-112123.34049416,0.0001,2]
[344718738,1733737832250,-1371.0695985,8.219e-05,2]
[344718739,1733737832261,-487.8704015,8.219e-05,2]
[344718740,1733737832271,-1569.87,8.662e-05,2]
[344718741,1733737832280,-11322.55,8.674e-05,2]
[344718742,1733737832289,-1975.24,8.679e-05,2]
[344718743,1733737832298,-156.37,8.773e-05,2]
[344718744,1733737832307,-250.0,8.918e-05,2]
[344718745,1733737832316,-150.0,8.959e-05,2]
[344718746,1733737832326,-594.2,8.972e-05,2]
[344718747,1733737832336,-150.0,8.986e-05,2]
[344718748,1733737832345,-150.0,8.999e-05,2]
[344718749,1733737832354,-500.0,9e-05,2]
[344718750,1733737832363,-500.0,9e-05,2]
[344718751,1733737832372,-500.0,9e-05,2]
[344718752,1733737832381,-500.0,9e-05,2]
[344718753,1733737832391,-500.0,9e-05,2]
[344718754,1733737832400,-500.0,9e-05,2]
[344718755,1733737832410,-500.0,9e-05,2]
[344718756,1733737832419,-500.0,9e-05,2]
[344718757,1733737832429,-500.0,9e-05,2]
[344718758,1733737832439,-500.0,9e-05,2]
[344718759,1733737832448,-500.0,9e-05,2]
[344718760,1733737832458,-500.0,9e-05,2]
[344718761,1733737832467,-500.0,9e-05,2]
[344718762,1733737832476,-500.0,9e-05,2]
[344718763,1733737832486,-500.0,9e-05,2]
[344718764,1733737832495,-500.0,9e-05,2]
[344718765,1733737832504,-500.0,9e-05,2]
[344718766,1733737832514,-500.0,9e-05,2]
[344718767,1733737832523,-500.0,9e-05,2]
[344718768,1733737832537,-500.0,9e-05,2]
[344718769,1733737832547,-500.0,9e-05,2]
[344718770,1733737832556,-500.0,9e-05,2]
[344718771,1733737832565,-500.0,9e-05,2]
[344718772,1733737832576,-500.0,9e-05,2]
[344718773,1733737832585,-500.0,9e-05,2]
[344718774,1733737832595,-500.0,9e-05,2]
[344718775,1733737832605,-500.0,9e-05,2]
[344718776,1733737832615,-500.0,9e-05,2]
[344718778,1733737832624,-500.0,9e-05,2]
[344718780,1733737832634,-500.0,9e-05,2]
[344718782,1733737832644,-500.0,9e-05,2]
[344718783,1733737832654,-500.0,9e-05,2]
[344718785,1733737832663,-500.0,9e-05,2]
[344718787,1733737832672,-500.0,9e-05,2]
[344718789,1733737832681,-500.0,9e-05,2]
[344718791,1733737832690,-500.0,9e-05,2]
[344718793,1733737832699,-500.0,9e-05,2]
[344718794,1733737832708,-500.0,9e-05,2]
[344718796,1733737832717,-376.14,9e-05,2]
[344718798,1733737832726,-500.0,9e-05,2]
[344718800,1733737832736,-500.0,9e-05,2]
[344718803,1733737832745,-500.0,9e-05,2]
[344718805,1733737832755,-500.0,9e-05,2]
[344718807,1733737832764,-500.0,9e-05,2]
[344718809,1733737832773,-500.0,9e-05,2]
[344718811,1733737832782,-500.0,9e-05,2]
[344718813,1733737832792,-500.0,9e-05,2]
[344718815,1733737832801,-500.0,9e-05,2]
[344718817,1733737832810,-500.0,9e-05,2]
[344718819,1733737832819,-500.0,9e-05,2]
[344718821,1733737832828,-500.0,9e-05,2]
[344718823,1733737832837,-500.0,9e-05,2]
[344718825,1733737832847,-500.0,9e-05,2]
[344718827,1733737832856,-500.0,9e-05,2]
[344718829,1733737832865,-500.0,9e-05,2]
[344718831,1733737832874,-500.0,9e-05,2]
[344718833,1733737832883,-500.0,9e-05,2]
[344718835,1733737832892,-500.0,9e-05,2]
[344718837,1733737832902,-500.0,9e-05,2]
[344718839,1733737832911,-500.0,9e-05,2]
[344718841,1733737832920,-500.0,9e-05,2]
[344718842,1733737832930,-500.0,9e-05,2]
[344718844,1733737832940,-500.0,9e-05,2]
[344718846,1733737832949,-500.0,9e-05,2]
[344718848,1733737832959,-500.0,9e-05,2]
[344718850,1733737832968,-500.0,9e-05,2]
[344718852,1733737832977,-500.0,9e-05,2]
[344718854,1733737832986,-500.0,9e-05,2]
[344718856,1733737832995,-500.0,9e-05,2]
[344718858,1733737833004,-500.0,9e-05,2]
[344718860,1733737833014,-500.0,9e-05,2]
[344718862,1733737833024,-500.0,9e-05,2]
[344718864,1733737833034,-500.0,9e-05,2]
[344718866,1733737833044,-383.67,9e-05,2]
[344718868,1733737833054,-1000.0,9.036e-05,2]
[344718870,1733737833065,-150.33,9.078e-05,2]
[344718871,1733737833075,-150.0,9.078e-05,2]
[344718873,1733737833085,-150.0,9.078e-05,2]
[344718875,1733737833094,-1462.87,9.078e-05,2]
[344718877,1733737833104,-150.0,9.078e-05,2]
[344718879,1733737833113,-150.0,9.078e-05,2]
[344718881,1733737833123,-1742.76,9.078e-05,2]
[344718883,1733737833133,-150.0,9.078e-05,2]
[344718885,1733737833142,-150.0,9.078e-05,2]
[344718887,1733737833152,-150.0,9.078e-05,2]
[344718889,1733737833162,-167.47,9.138e-05,2]
[344718891,1733737833171,-150.0,9.138e-05,2]
[344718893,1733737833180,-728.14,9.138e-05,2]
[344718895,1733737833190,-728.4,9.138e-05,2]
[344718897,1733737833200,-768.25,9.205e-05,2]
[344718899,1733737833209,-768.51,9.205e-05,2]
[344718901,1733737833219,-768.51,9.205e-05,2]
[344718903,1733737833229,-768.51,9.205e-05,2]
[344718905,1733737833239,-768.51,9.205e-05,2]
[344718907,1733737833249,-768.51,9.205e-05,2]
[344718909,1733737833258,-768.51,9.205e-05,2]
[344718911,1733737833268,-768.51,9.205e-05,2]
[344718913,1733737833278,-768.51,9.205e-05,2]
[344718915,1733737833287,-768.51,9.205e-05,2]
[344718917,1733737833297,-768.51,9.205e-05,2]
[344718919,1733737833306,-768.51,9.241e-05,2]
[344718921,1733737833316,-150.0,9.485e-05,2]
[344718923,1733737833324,-150.0,9.485e-05,2]
[344718925,1733737833337,-150.0,9.485e-05,2]
[344718927,1733737833348,-152.66,9.485e-05,2]
[344718929,1733737833359,-150.0,9.485e-05,2]
[344718930,1733737833372,-150.0,9.485e-05,2]
[344718931,1733737833383,-150.0,9.485e-05,2]
[344718932,1733737833395,-150.0,9.485e-05,2]
[344718933,1733737833408,-337.037,9.5e-05,2]
[344718934,1733737833419,-320.13,9.5e-05,2]
[344718935,1733737833430,-5978.6954,9.602e-05,2]
[344718936,1733737833440,-7895.59641584,9.701e-05,2]
[344718937,1733737833451,-364.31,9.753e-05,2]
[344718938,1733737833463,-364.31,9.753e-05,2]
[344718939,1733737833475,-364.31,9.753e-05,2]
[344718940,1733737833486,-3950.9092,9.799e-05,2]
[344718941,1733737833497,-43650.42467707,9.8e-05,2]
[344718942,1733737833508,-423.7,9.8e-05,2]
[344718943,1733737833520,-150.0,9.8e-05,2]
[344718944,1733737833536,-415.68,9.8e-05,2]
[344718945,1733737833548,-150.0,9.8e-05,2]
[344718946,1733737833559,-879.62,9.8e-05,2]
[344718947,1733737833571,-3277.3254,9.898e-05,2]
[344718948,1733737833583,-5171.2876,9.899e-05,2]
[344718949,1733737833594,-227.10855228,9.899e-05,2]
[344718950,1733737833610,-272.89144772,9.899e-05,2]
[344718951,1733737833621,-1284.8648,9.899e-05,2]
[344718952,1733737833632,-500.0,9.899e-05,2]
[344718953,1733737833643,-500.0,9.899e-05,2]
[344718954,1733737833653,-500.0,9.899e-05,2]
[344718955,1733737833663,-500.0,9.899e-05,2]
[344718956,1733737833675,-500.0,9.899e-05,2]
[344718957,1733737833687,-500.0,9.899e-05,2]
[344718958,1733737833700,-533.86,9.899e-05,2]
[344718959,1733737833711,-500.0,9.899e-05,2]
[344718960,1733737833723,-500.0,9.899e-05,2]
[344718961,1733737833734,-396.94673837,9.899e-05,2]
[344718962,1733737833746,-500.0,9.899e-05,2]
[344718963,1733737833758,-500.0,9.899e-05,2]
[344718964,1733737833770,-500.0,9.899e-05,2]
[344718965,1733737833781,-500.0,9.899e-05,2]
[344718966,1733737833793,-500.0,9.899e-05,2]
[344718967,1733737833804,-500.0,9.899e-05,2]
[344718968,1733737833816,-500.0,9.899e-05,2]
[344718969,1733737833827,-500.0,9.899e-05,2]
[344718970,1733737833839,-500.0,9.899e-05,2]
[344718971,1733737833849,-648.52,9.899e-05,2]
[344718972,1733737833862,-500.0,9.899e-05,2]
[344718973,1733737833875,-500.0,9.899e-05,2]
[344718974,1733737833886,-500.0,9.899e-05,2]
[344718975,1733737833897,-977.56348002,9.9e-05,2]
[344718976,1733737833909,-16657.15147345,9.9e-05,2]
[344718977,1733737833931,-10159.06533526,9.9e-05,2]
[344718984,1733737838150,-500.0,9.899e-05,2]
[344718985,1733737838160,-32914.80219129,9.9e-05,2]
[344718986,1733737838170,-1000.0,9.9e-05,2]
[344718987,1733737838181,-150.0,9.9e-05,2]
[344718988,1733737838194,-150.0,9.9e-05,2]
[344718989,1733737838205,-150.0,9.9e-05,2]
[344718990,1733737838215,-150.0,9.9e-05,2]
[344718991,1733737838225,-150.0,9.9e-05,2]
[344718992,1733737838236,-2890.39425032,9.91e-05,2]
[344718993,1733737838245,-306.061,9.959e-05,2]
[344718994,1733737838256,-1086.294,9.959e-05,2]
[344718995,1733737838266,-631.0,9.959e-05,2]
[344718996,1733737838277,-1892.0,9.959e-05,2]
[344718997,1733737838287,-563.0,9.959e-05,2]
[344718998,1733737838297,-3762.0,9.959e-05,2]
[344718999,1733737838307,-817.0,9.959e-05,2]
[344719000,1733737838317,-1253.0,9.959e-05,2]
[344719001,1733737838327,-1537.0,9.959e-05,2]
[344719002,1733737838336,-973.0,9.959e-05,2]
[344719003,1733737838346,-150.0,9.959e-05,2]
[344719004,1733737838355,-251.0,9.959e-05,2]
[344719005,1733737838365,-150.0,9.959e-05,2]
[344719006,1733737838375,-158.488,9.959e-05,2]
[344719007,1733737838385,-200.0,9.968e-05,2]
[344719008,1733737838395,-641.22154269,9.973e-05,2]
[344719009,1733737838405,-159.94622784,9.973e-05,2]
[344719010,1733737838415,-500.0,9.973e-05,2]
[344719011,1733737838425,-500.0,9.973e-05,2]
[344719012,1733737838435,-352.05507117,9.973e-05,2]
[344719013,1733737838448,-356.9515549,9.989e-05,2]
[344719014,1733737838457,-6239.9838224,9.989e-05,2]
[344719015,1733737838468,-500.0,9.991e-05,2]
[344719016,1733737838478,-500.0,9.991e-05,2]
[344719017,1733737838488,-500.0,9.991e-05,2]
[344719018,1733737838498,-500.0,9.991e-05,2]
[344719019,1733737838509,-500.0,9.991e-05,2]
[344719020,1733737838519,-500.0,9.991e-05,2]
[344719021,1733737838530,-500.0,9.991e-05,2]
[344719022,1733737838542,-500.0,9.991e-05,2]
[344719023,1733737838552,-500.0,9.991e-05,2]
[344719024,1733737838563,-500.0,9.991e-05,2]
[344719025,1733737838574,-500.0,9.991e-05,2]
[344719026,1733737838584,-500.0,9.991e-05,2]
[344719027,1733737838594,-500.0,9.991e-05,2]
[344719028,1733737838604,-500.0,9.991e-05,2]
[344719029,1733737838616,-388.48,9.991e-05,2]
[344719030,1733737838626,-500.0,9.991e-05,2]
[344719031,1733737838636,-500.0,9.991e-05,2]
[344719032,1733737838646,-500.0,9.991e-05,2]
[344719033,1733737838656,-500.0,9.991e-05,2]
[344719034,1733737838666,-500.0,9.991e-05,2]
[344719035,1733737838676,-500.0,9.991e-05,2]
[344719037,1733737838686,-500.0,9.991e-05,2]
[344719039,1733737838697,-524.99761049,9.991e-05,2]
[344719041,1733737838708,-500.0,9.991e-05,2]
[344719043,1733737838718,-163.15891388,9.991e-05,2]
[344719045,1733737838728,-500.0,9.991e-05,2]
[344719048,1733737838738,-327.8678767,9.993e-05,2]
[344719050,1733737838749,-5731.5627802,9.993e-05,2]
[344719052,1733737838758,-272.53800006,9.996e-05,2]
[344719054,1733737838768,-500.0,9.996e-05,2]
[344719056,1733737838778,-500.0,9.996e-05,2]
[344719058,1733737838788,-500.0,9.996e-05,2]
[344719060,1733737838798,-500.0,9.996e-05,2]
[344719062,1733737838808,-500.0,9.996e-05,2]
[344719064,1733737838818,-500.0,9.996e-05,2]
[344719066,1733737838827,-310.41334439,9.996e-05,2]
[344719068,1733737838838,-500.0,9.996e-05,2]
[344719070,1733737838848,-500.0,9.996e-05,2]
[344719072,1733737838858,-500.0,9.996e-05,2]
[344719074,1733737838868,-500.0,9.996e-05,2]
[344719076,1733737838878,-500.0,9.996e-05,2]
[344719079,1733737838888,-500.0,9.996e-05,2]
[344719081,1733737838899,-821.76,9.996e-05,2]
[344719083,1733737838910,-500.0,9.996e-05,2]
[344719085,1733737838921,-2025.45,9.996e-05,2]
[344719087,1733737838931,-651.39,9.996e-05,2]
[344719089,1733737838944,-500.0,9.996e-05,2]
[344719091,1733737838954,-500.66,9.996e-05,2]
[344719093,1733737838964,-500.0,9.996e-05,2]
[344719095,1733737838974,-500.0,9.996e-05,2]
[344719097,1733737838984,-500.0,9.996e-05,2]
[344719099,1733737838994,-511.26,9.996e-05,2]
[344719101,1733737839004,-500.0,9.996e-05,2]
[344719104,1733737839014,-500.0,9.996e-05,2]
[344719105,1733737839025,-500.0,9.996e-05,2]
[344719106,1733737839035,-500.0,9.996e-05,2]
[344719107,1733737839045,-500.0,9.996e-05,2]
[344719109,1733737839055,-500.0,9.996e-05,2]
[344719110,1733737839065,-500.0,9.996e-05,2]
[344719112,1733737839075,-500.0,9.996e-05,2]
[344719113,1733737839086,-500.0,9.996e-05,2]
[344719114,1733737839097,-500.0,9.996e-05,2]
[344719115,1733737839107,-405.38908242,9.996e-05,2]
[344719116,1733737839117,-173.76730046,9.996e-05,2]
[344719117,1733737839127,-188.82483752,9.996e-05,2]
[344719118,1733737839137,-150.0,9.997e-05,3]
[344719119,1733737839147,-150.0,9.997e-05,3]
[344719120,1733737839533,-150.0,9.997e-05,2]
[344719121,1733737839551,-150.0,9.997e-05,2]
[344719122,1733737839570,-13057.49203697,9.997e-05,2]
[344719123,1733737839581,-590502.41373279,9.997e-05,2]
[344719124,1733737839602,-1362.0,9.997e-05,2]
[344719125,1733737839616,-24454.78704726,9.997e-05,2]
[344719126,1733737839627,-43960.0,9.997e-05,2]
[344719127,1733737839638,-69174.15743537,9.997e-05,2]
[344719128,1733737839650,-5024.82931398,9.997e-05,2]
[344719129,1733737839661,-45960.0,9.997e-05,2]
[344719130,1733737839672,-4947.09547806,9.997e-05,2]
[344719131,1733737839683,-278.40311,9.997e-05,2]
[344719132,1733737839701,-782.78,9.997e-05,2]
[344719133,1733737839712,-9926.0,9.997e-05,2]
[344719134,1733737839723,-2525.90847655,9.997e-05,2]
[344719135,1733737839745,-10742.85761069,9.997e-05,2]
[344719136,1733737839763,-707.2894643,9.997e-05,2]
[344719138,1733737840106,-3735.0,9.997e-05,2]
[344719139,1733737840117,-1353.23790222,9.997e-05,2]
[344719140,1733737840129,-1079.42011047,9.997e-05,2]
[344719141,1733737840139,-4465.35320515,9.997e-05,2]
[344719142,1733737840200,-385.38,9.997e-05,2]
[344719143,1733737840217,-21346.71360008,9.997e-05,2]
[344719144,1733737840308,-54127.95278757,9.997e-05,2]
[344719145,1733737840321,-962.70634916,9.997e-05,2]
[344719146,1733737840332,-2537.03952318,9.997e-05,2]
[344719147,1733737840387,-10834.08678676,9.997e-05,2]
[344719148,1733737840398,-152594.11890336,9.997e-05,2]
[344719149,1733737840410,-24108.74999988,9.997e-05,2]
[344719150,1733737840422,-20051.54925896,9.997e-05,2]
[344719151,1733737840433,-9878.62362,9.997e-05,2]
[344719152,1733737840447,-986.09511,9.997e-05,2]
[344719187,1733737843420,-150.0,9.485e-05,2]
[344719189,1733737843430,-183.158,9.959e-05,2]
[344719191,1733737843439,-500.0,9.996e-05,2]
[344719192,1733737843450,-500.0,9.996e-05,2]
[344719193,1733737843459,-104.04231399,9.996e-05,2]
[344719194,1733737843471,-395.95768601,9.996e-05,2]
[344719195,1733737843480,-246197.90078739,9.997e-05,2]
[344719196,1733737843518,-241497.42338816,9.997e-05,2]
[344719197,1733737843530,-8723.13,9.997e-05,2]
[344719198,1733737843597,-2829.18561165,9.997e-05,2]
[344719199,1733737843609,-3963.4261,9.997e-05,2]
[344719200,1733737843620,-2788.40307863,9.997e-05,2]
[344719201,1733737843750,-364.31,9.753e-05,2]
[344719202,1733737843760,-14605.1486667,9.997e-05,2]
[344719203,1733737843771,-9643.27105044,9.997e-05,2]
[344719204,1733737843788,-3988.89999991,9.997e-05,2]
[344719205,1733737843799,-1374.200001,9.997e-05,2]
[344719214,1733737846122,-351.21783689,9.205e-05,2]
[344719215,1733737846134,-417.29216311,9.205e-05,2]